[Event "Late-Titled-Tuesday-Blitz-September-12-2023"]
[Site "Chess.com"]
[Date "2023.09.12"]
[Round "3"]
[White "Igor_Lysyj"]
[Black "Manukyan_Artak"]
[Result "1-0"]
[WhiteElo "2851"]
[BlackElo "2527"]
[TimeControl "180+1"]
[EndTime "14:26:46 PDT"]
[Termination "Igor_Lysyj won on time"]

1. d4 {[%clk 0:02:59.9]} 1... d5 {[%clk 0:02:59.4]} 2. c4 {[%clk 0:02:58.3]}
2... dxc4 {[%clk 0:02:59.8]} 3. Nf3 {[%clk 0:02:58.1]} 3... Nf6 {[%clk
0:02:59.6]} 4. e3 {[%clk 0:02:57.8]} 4... e6 {[%clk 0:02:58.4]} 5. Bxc4 {[%clk
0:02:57.1]} 5... a6 {[%clk 0:02:58.2]} 6. O-O {[%clk 0:02:55]} 6... c5 {[%clk
0:02:57.7]} 7. Nc3 {[%clk 0:02:48]} 7... b5 {[%clk 0:02:56.4]} 8. Be2 {[%clk
0:02:47.7]} 8... Bb7 {[%clk 0:02:56.6]} 9. dxc5 {[%clk 0:02:47.1]} 9... Bxc5
{[%clk 0:02:55.9]} 10. Qxd8+ {[%clk 0:02:44.9]} 10... Kxd8 {[%clk 0:02:56.8]}
11. Nd2 {[%clk 0:02:43.9]} 11... Ke7 {[%clk 0:02:55.6]} 12. Nb3 {[%clk 0:02:44]}
12... Ba7 {[%clk 0:02:51.9]} 13. Na5 {[%clk 0:02:36.1]} 13... Bd5 {[%clk
0:02:39.5]} 14. a4 {[%clk 0:02:34.5]} 14... b4 {[%clk 0:02:08.4]} 15. Nxd5+
{[%clk 0:02:33.1]} 15... Nxd5 {[%clk 0:02:08.1]} 16. Bd2 {[%clk 0:02:31.2]}
16... Bb6 {[%clk 0:02:02]} 17. Nc4 {[%clk 0:02:18.7]} 17... Bc5 {[%clk
0:02:00.1]} 18. Rac1 {[%clk 0:02:17.9]} 18... Nd7 {[%clk 0:01:51.8]} 19. Na5
{[%clk 0:02:17.5]} 19... Rhc8 {[%clk 0:01:42.5]} 20. Rc2 {[%clk 0:02:05]} 20...
Bd6 {[%clk 0:01:42]} 21. Rfc1 {[%clk 0:02:02.7]} 21... Rxc2 {[%clk 0:01:41.5]}
22. Rxc2 {[%clk 0:02:02.9]} 22... N7b6 {[%clk 0:01:25.6]} 23. Nc6+ {[%clk
0:01:44.8]} 23... Kd7 {[%clk 0:01:24.5]} 24. a5 {[%clk 0:01:41.1]} 24... Na4
{[%clk 0:01:12.6]} 25. Nd4 {[%clk 0:01:34.2]} 25... Nc5 {[%clk 0:00:52.7]} 26.
Bf3 {[%clk 0:01:15.7]} 26... Nb7 {[%clk 0:00:40]} 27. e4 {[%clk 0:01:14.6]}
27... e5 {[%clk 0:00:22.1]} 28. Bg4+ {[%clk 0:01:03.4]} 28... Ke8 {[%clk
0:00:13.6]} 29. Nf5 {[%clk 0:01:00.8]} 29... Nf4 {[%clk 0:00:08.2]} 30. Nxg7+
{[%clk 0:00:56.7]} 30... Kf8 {[%clk 0:00:08.1]} 31. Nf5 {[%clk 0:00:56.1]} 31...
Bc5 {[%clk 0:00:08.3]} 32. g3 {[%clk 0:00:50.4]} 32... Nd3 {[%clk 0:00:06.6]}
33. Bh6+ {[%clk 0:00:40.5]} 33... Kg8 {[%clk 0:00:06.4]} 34. Kg2 {[%clk
0:00:33.7]} 34... Nxa5 {[%clk 0:00:04.2]} 35. Be2 {[%clk 0:00:33]} 35... b3
{[%clk 0:00:02.6]} 36. Rd2 {[%clk 0:00:29.4]} 1-0

[Event "Late-Titled-Tuesday-Blitz-September-12-2023"]
[Site "Chess.com"]
[Date "2023.09.12"]
[Round "3"]
[White "NovikovaGalina"]
[Black "oskariot"]
[Result "0-1"]
[WhiteElo "2430"]
[BlackElo "2690"]
[TimeControl "180+1"]
[EndTime "14:26:47 PDT"]
[Termination "oskariot won by checkmate"]

1. e4 {[%clk 0:03:00.9]} 1... c5 {[%clk 0:02:59.3]} 2. Nf3 {[%clk 0:03:01.1]}
2... e6 {[%clk 0:02:56.1]} 3. b4 {[%clk 0:03:00.2]} 3... cxb4 {[%clk 0:02:56]}
4. a3 {[%clk 0:03:00.8]} 4... bxa3 {[%clk 0:02:48.3]} 5. Nxa3 {[%clk 0:03:01.7]}
5... Nf6 {[%clk 0:02:46.1]} 6. e5 {[%clk 0:03:01.3]} 6... Nd5 {[%clk 0:02:46.5]}
7. c3 {[%clk 0:03:00]} 7... d6 {[%clk 0:02:46.1]} 8. Nb5 {[%clk 0:02:39.5]} 8...
dxe5 {[%clk 0:02:40.1]} 9. Nxe5 {[%clk 0:02:38.2]} 9... Nc6 {[%clk 0:02:40.4]}
10. d4 {[%clk 0:02:34.4]} 10... Nxe5 {[%clk 0:02:35.6]} 11. dxe5 {[%clk
0:02:34.5]} 11... Bc5 {[%clk 0:02:32]} 12. Bd3 {[%clk 0:02:31.2]} 12... O-O
{[%clk 0:02:28.9]} 13. O-O {[%clk 0:02:28.5]} 13... Bd7 {[%clk 0:02:29.1]} 14.
Nd6 {[%clk 0:02:28.4]} 14... Bc6 {[%clk 0:02:21.8]} 15. Qh5 {[%clk 0:02:03.9]}
15... g6 {[%clk 0:02:18.4]} 16. Qh6 {[%clk 0:02:02.4]} 16... Bxd6 {[%clk
0:02:00.7]} 17. exd6 {[%clk 0:02:03.3]} 17... Qxd6 {[%clk 0:02:01.6]} 18. Ba3
{[%clk 0:02:00.8]} 18... Qf4 {[%clk 0:02:01.9]} 19. Bxf8 {[%clk 0:01:58]} 19...
Rxf8 {[%clk 0:01:59.7]} 20. Qh3 {[%clk 0:01:22.8]} 20... Qf6 {[%clk 0:01:59.6]}
21. Be4 {[%clk 0:01:09.6]} 21... a6 {[%clk 0:01:46.4]} 22. c4 {[%clk 0:01:06.3]}
22... Ne7 {[%clk 0:01:38.7]} 23. Bxc6 {[%clk 0:01:05.6]} 23... Nxc6 {[%clk
0:01:39.6]} 24. Rab1 {[%clk 0:01:03.4]} 24... Rb8 {[%clk 0:01:39.5]} 25. Qg3
{[%clk 0:01:02.6]} 25... e5 {[%clk 0:01:35.6]} 26. h4 {[%clk 0:00:57.2]} 26...
Nd4 {[%clk 0:01:31.9]} 27. Rfe1 {[%clk 0:00:56.5]} 27... Nc6 {[%clk 0:01:15.1]}
28. h5 {[%clk 0:00:55.9]} 28... Kg7 {[%clk 0:01:15.1]} 29. Rb6 {[%clk
0:00:48.9]} 29... Qf5 {[%clk 0:01:00.9]} 30. hxg6 {[%clk 0:00:42.9]} 30... hxg6
{[%clk 0:01:00.3]} 31. Reb1 {[%clk 0:00:41.3]} 31... Nd4 {[%clk 0:00:58.2]} 32.
Qe3 {[%clk 0:00:26.2]} 32... Rh8 {[%clk 0:00:54.5]} 33. Rxb7 {[%clk 0:00:06.9]}
33... Rh4 {[%clk 0:00:38]} 34. g3 {[%clk 0:00:01.2]} 34... Nf3+ {[%clk
0:00:28.1]} 35. Kf1 {[%clk 0:00:01.8]} 35... Rh1+ {[%clk 0:00:25.6]} 36. Ke2
{[%clk 0:00:01.7]} 36... Nd4+ {[%clk 0:00:26.3]} 37. Kd2 {[%clk 0:00:01.3]}
37... Qc2# {[%clk 0:00:26.1]} 0-1

[Event "Late-Titled-Tuesday-Blitz-September-12-2023"]
[Site "Chess.com"]
[Date "2023.09.12"]
[Round "3"]
[White "malakismayil"]
[Black "AlejandroBalde"]
[Result "1-0"]
[WhiteElo "2506"]
[BlackElo "1994"]
[TimeControl "180+1"]
[EndTime "14:26:47 PDT"]
[Termination "malakismayil won by resignation"]

1. e4 {[%clk 0:03:00.9]} 1... c5 {[%clk 0:02:59.9]} 2. Nf3 {[%clk 0:02:59.5]}
2... Nc6 {[%clk 0:03:00]} 3. d4 {[%clk 0:02:57.1]} 3... cxd4 {[%clk 0:03:00.2]}
4. Nxd4 {[%clk 0:02:58]} 4... e5 {[%clk 0:03:00.6]} 5. Nxc6 {[%clk 0:02:53]}
5... bxc6 {[%clk 0:03:00.5]} 6. Bc4 {[%clk 0:02:49.6]} 6... Nf6 {[%clk
0:02:59.3]} 7. Qe2 {[%clk 0:02:47.7]} 7... Bc5 {[%clk 0:02:56]} 8. O-O {[%clk
0:02:47.4]} 8... O-O {[%clk 0:02:56]} 9. Nc3 {[%clk 0:02:47.4]} 9... d5 {[%clk
0:02:38]} 10. exd5 {[%clk 0:02:24.9]} 10... cxd5 {[%clk 0:02:38]} 11. Bb3 {[%clk
0:02:25.4]} 11... d4 {[%clk 0:02:29.3]} 12. Ne4 {[%clk 0:02:21.2]} 12... Nxe4
{[%clk 0:02:28.6]} 13. Qxe4 {[%clk 0:02:22.1]} 13... Rb8 {[%clk 0:02:15]} 14.
Qxe5 {[%clk 0:02:16.3]} 14... Bd6 {[%clk 0:02:15.2]} 15. Qh5 {[%clk 0:02:14]}
15... Qf6 {[%clk 0:02:05.3]} 16. Bg5 {[%clk 0:01:41.3]} 16... Qf5 {[%clk
0:01:38.5]} 17. Qh4 {[%clk 0:01:31.9]} 17... Ba6 {[%clk 0:01:21.6]} 18. Rfe1
{[%clk 0:01:26.4]} 18... d3 {[%clk 0:01:05.8]} 19. cxd3 {[%clk 0:01:22]} 19...
Bxd3 {[%clk 0:01:04.6]} 20. Rad1 {[%clk 0:01:18.9]} 20... Rb4 {[%clk 0:01:02.9]}
21. Qh5 {[%clk 0:00:38.4]} 21... Rg4 {[%clk 0:00:41.8]} 22. Rxd3 {[%clk
0:00:31.5]} 22... Rxg5 {[%clk 0:00:36.8]} 23. Qf3 {[%clk 0:00:29.5]} 23... Qg6
{[%clk 0:00:16]} 24. g3 {[%clk 0:00:27.8]} 24... Rf5 {[%clk 0:00:13.2]} 25. Qe2
{[%clk 0:00:15]} 25... Bc5 {[%clk 0:00:10.3]} 26. Rf3 {[%clk 0:00:15.2]} 26...
Rh5 {[%clk 0:00:04.5]} 27. Qe4 {[%clk 0:00:12.6]} 27... Qh6 {[%clk 0:00:03.6]}
28. Bxf7+ {[%clk 0:00:10.5]} 28... Kh8 {[%clk 0:00:03.5]} 29. Bxh5 {[%clk
0:00:09.5]} 1-0

[Event "Late-Titled-Tuesday-Blitz-September-12-2023"]
[Site "Chess.com"]
[Date "2023.09.12"]
[Round "3"]
[White "Mariia89"]
[Black "RCone"]
[Result "0-1"]
[WhiteElo "2010"]
[BlackElo "2339"]
[TimeControl "180+1"]
[EndTime "14:26:47 PDT"]
[Termination "RCone won on time"]

1. d4 {[%clk 0:03:00]} 1... d6 {[%clk 0:03:00.9]} 2. c4 {[%clk 0:02:59.9]} 2...
Nf6 {[%clk 0:03:01.1]} 3. Nc3 {[%clk 0:02:59.7]} 3... g6 {[%clk 0:03:01.4]} 4.
e4 {[%clk 0:02:59.7]} 4... Bg7 {[%clk 0:03:02.3]} 5. Nf3 {[%clk 0:02:59.2]} 5...
O-O {[%clk 0:03:02.8]} 6. Be2 {[%clk 0:03:00.1]} 6... Na6 {[%clk 0:03:03.3]} 7.
O-O {[%clk 0:03:00]} 7... e5 {[%clk 0:03:03.9]} 8. Re1 {[%clk 0:02:59.4]} 8...
Qe8 {[%clk 0:03:02.8]} 9. Bf1 {[%clk 0:02:56.6]} 9... Bg4 {[%clk 0:03:02.7]} 10.
d5 {[%clk 0:02:56]} 10... Nb4 {[%clk 0:02:57.5]} 11. a3 {[%clk 0:02:52.1]} 11...
Bxf3 {[%clk 0:02:57.3]} 12. Qxf3 {[%clk 0:02:45.6]} 12... Nc2 {[%clk 0:02:56.9]}
13. Rb1 {[%clk 0:02:46.2]} 13... Nxe1 {[%clk 0:02:57]} 14. Qe2 {[%clk
0:02:45.4]} 14... Nxg2 {[%clk 0:02:52.1]} 15. Bxg2 {[%clk 0:02:45.6]} 15... Nh5
{[%clk 0:02:52.3]} 16. b4 {[%clk 0:02:42.9]} 16... Nf4 {[%clk 0:02:50.8]} 17.
Qg4 {[%clk 0:02:38.2]} 17... Qc8 {[%clk 0:02:38.4]} 18. Qg3 {[%clk 0:02:36.6]}
18... a5 {[%clk 0:02:34.2]} 19. c5 {[%clk 0:02:15.5]} 19... axb4 {[%clk
0:02:31.5]} 20. axb4 {[%clk 0:02:15.7]} 20... f5 {[%clk 0:02:21.5]} 21. Nb5
{[%clk 0:02:02.5]} 21... Nxg2 {[%clk 0:02:19.1]} 22. Qxg2 {[%clk 0:02:02.1]}
22... fxe4 {[%clk 0:02:18.5]} 23. Qxe4 {[%clk 0:01:54.2]} 23... Qd7 {[%clk
0:02:12.9]} 24. Nc3 {[%clk 0:01:49.2]} 24... Qh3 {[%clk 0:02:07.9]} 25. Be3
{[%clk 0:01:46.5]} 25... Bh6 {[%clk 0:02:07.3]} 26. Bxh6 {[%clk 0:01:44]} 26...
Qxh6 {[%clk 0:02:06.7]} 27. Ne2 {[%clk 0:01:14.3]} 27... Qg5+ {[%clk 0:01:54.8]}
28. Ng3 {[%clk 0:01:13.6]} 28... Rf4 {[%clk 0:01:53.5]} 29. Qc2 {[%clk
0:01:07.8]} 29... Raf8 {[%clk 0:01:49.4]} 30. Rf1 {[%clk 0:00:51.7]} 30... h5
{[%clk 0:01:44.8]} 31. Kh1 {[%clk 0:00:48.7]} 31... h4 {[%clk 0:01:44]} 32. Ne4
{[%clk 0:00:38.6]} 32... Qf5 {[%clk 0:01:42.4]} 33. cxd6 {[%clk 0:00:30]} 33...
cxd6 {[%clk 0:01:38.1]} 34. Re1 {[%clk 0:00:27.5]} 34... h3 {[%clk 0:01:23.5]}
35. Re3 {[%clk 0:00:24.4]} 35... Rf3 {[%clk 0:01:02.5]} 36. Qd3 {[%clk
0:00:09.6]} 36... Rxe3 {[%clk 0:01:00.9]} 37. Qxe3 {[%clk 0:00:09.3]} 37... Qg4
{[%clk 0:00:44.4]} 0-1

[Event "Late-Titled-Tuesday-Blitz-September-12-2023"]
[Site "Chess.com"]
[Date "2023.09.12"]
[Round "3"]
[White "GlavkonVVS"]
[Black "ARTHURMOTIVATOR"]
[Result "1-0"]
[WhiteElo "2584"]
[BlackElo "2396"]
[TimeControl "180+1"]
[EndTime "14:26:48 PDT"]
[Termination "GlavkonVVS won by resignation"]

1. c4 {[%clk 0:03:00.9]} 1... e5 {[%clk 0:02:55.6]} 2. Nc3 {[%clk 0:03:00.6]}
2... Bb4 {[%clk 0:02:54.2]} 3. g3 {[%clk 0:03:00.8]} 3... Bxc3 {[%clk
0:02:53.9]} 4. bxc3 {[%clk 0:03:01.2]} 4... d6 {[%clk 0:02:53.8]} 5. Bg2 {[%clk
0:03:01.7]} 5... Nc6 {[%clk 0:02:53.9]} 6. d3 {[%clk 0:03:02.2]} 6... f5 {[%clk
0:02:53.6]} 7. f4 {[%clk 0:03:01.5]} 7... Nf6 {[%clk 0:02:45.9]} 8. Nf3 {[%clk
0:02:59.8]} 8... O-O {[%clk 0:02:44.8]} 9. O-O {[%clk 0:02:59.7]} 9... Qe7
{[%clk 0:02:42.8]} 10. Rb1 {[%clk 0:02:55.6]} 10... e4 {[%clk 0:02:29.3]} 11.
Nd4 {[%clk 0:02:55.1]} 11... Nxd4 {[%clk 0:02:22]} 12. cxd4 {[%clk 0:02:54.8]}
12... c6 {[%clk 0:02:18.1]} 13. Ba3 {[%clk 0:02:39.3]} 13... Re8 {[%clk
0:02:06.9]} 14. Re1 {[%clk 0:02:19.4]} 14... e3 {[%clk 0:01:55.8]} 15. Bf3
{[%clk 0:01:57.3]} 15... h6 {[%clk 0:01:53.1]} 16. Qb3 {[%clk 0:01:49.1]} 16...
g5 {[%clk 0:01:45.2]} 17. fxg5 {[%clk 0:01:48.9]} 17... hxg5 {[%clk 0:01:45.7]}
18. Qb4 {[%clk 0:01:42.8]} 18... Rd8 {[%clk 0:01:32.7]} 19. d5 {[%clk
0:01:31.4]} 19... c5 {[%clk 0:01:26.6]} 20. Qc3 {[%clk 0:01:31.4]} 20... Nd7
{[%clk 0:01:21.4]} 21. d4 {[%clk 0:01:17.6]} 21... b6 {[%clk 0:01:16.6]} 22. Bb2
{[%clk 0:01:16.6]} 22... Qh7 {[%clk 0:01:08.2]} 23. Qxe3 {[%clk 0:01:10.7]}
23... f4 {[%clk 0:00:58.8]} 24. gxf4 {[%clk 0:01:04.6]} 24... Nf8 {[%clk
0:00:27.3]} 25. dxc5 {[%clk 0:00:59.4]} 25... Bf5 {[%clk 0:00:25.5]} 26. Rbd1
{[%clk 0:00:37.4]} 26... Re8 {[%clk 0:00:23.1]} 27. Qf2 {[%clk 0:00:21.1]} 27...
g4 {[%clk 0:00:21.4]} 28. Bg2 {[%clk 0:00:18.6]} 28... Be4 {[%clk 0:00:20.1]}
29. Qg3 {[%clk 0:00:17.4]} 29... Qf5 {[%clk 0:00:18.5]} 30. h3 {[%clk
0:00:14.3]} 30... Ng6 {[%clk 0:00:15.9]} 31. e3 {[%clk 0:00:12.2]} 31... Qxf4
{[%clk 0:00:16.8]} 32. exf4 {[%clk 0:00:11.9]} 32... Bxg2 {[%clk 0:00:14.3]} 33.
Qxg2 {[%clk 0:00:11.4]} 1-0

[Event "Late-Titled-Tuesday-Blitz-September-12-2023"]
[Site "Chess.com"]
[Date "2023.09.12"]
[Round "3"]
[White "baki83"]
[Black "Hikaru"]
[Result "1-0"]
[WhiteElo "2828"]
[BlackElo "3205"]
[TimeControl "180+1"]
[EndTime "14:26:49 PDT"]
[Termination "baki83 won by checkmate"]

1. e4 {[%clk 0:02:47.2]} 1... c6 {[%clk 0:02:55.4]} 2. Nf3 {[%clk 0:02:46.2]}
2... d5 {[%clk 0:02:55]} 3. d3 {[%clk 0:02:46.9]} 3... Bg4 {[%clk 0:02:54.1]} 4.
Nbd2 {[%clk 0:02:46.1]} 4... Nd7 {[%clk 0:02:53.6]} 5. h3 {[%clk 0:02:46.4]}
5... Bh5 {[%clk 0:02:53.6]} 6. g4 {[%clk 0:02:45.1]} 6... Bg6 {[%clk 0:02:53.8]}
7. e5 {[%clk 0:02:45.5]} 7... e6 {[%clk 0:02:51.9]} 8. Bg2 {[%clk 0:02:45]} 8...
c5 {[%clk 0:02:51.3]} 9. O-O {[%clk 0:02:43.7]} 9... Ne7 {[%clk 0:02:51.7]} 10.
Re1 {[%clk 0:02:43.6]} 10... Nc6 {[%clk 0:02:52]} 11. Nf1 {[%clk 0:02:43.9]}
11... Qc7 {[%clk 0:02:49.8]} 12. Bf4 {[%clk 0:02:43.9]} 12... h5 {[%clk
0:02:47.4]} 13. Qd2 {[%clk 0:02:36.9]} 13... hxg4 {[%clk 0:02:47.3]} 14. hxg4
{[%clk 0:02:37.2]} 14... Be7 {[%clk 0:02:46.7]} 15. Ng3 {[%clk 0:02:36.1]} 15...
O-O-O {[%clk 0:02:42.3]} 16. a3 {[%clk 0:02:32.8]} 16... Kb8 {[%clk 0:02:33.4]}
17. b4 {[%clk 0:02:24.6]} 17... cxb4 {[%clk 0:02:31.1]} 18. axb4 {[%clk
0:02:24.8]} 18... Bxb4 {[%clk 0:02:30.8]} 19. c3 {[%clk 0:02:25]} 19... Be7
{[%clk 0:02:31]} 20. Reb1 {[%clk 0:02:18.5]} 20... Nc5 {[%clk 0:02:30.3]} 21.
Bf1 {[%clk 0:02:09.3]} 21... Rh7 {[%clk 0:02:12.9]} 22. Nd4 {[%clk 0:01:49.6]}
22... Ka8 {[%clk 0:01:50.1]} 23. Nb5 {[%clk 0:01:42.3]} 23... Qb8 {[%clk
0:01:50.4]} 24. Nf5 {[%clk 0:01:24.7]} 24... Bf8 {[%clk 0:01:21.1]} 25. Nfd4
{[%clk 0:01:11.7]} 25... Nxd4 {[%clk 0:01:07.5]} 26. cxd4 {[%clk 0:01:07.7]}
26... Na6 {[%clk 0:01:07.7]} 27. Nd6 {[%clk 0:00:43.3]} 27... Bxd6 {[%clk
0:00:57.9]} 28. exd6 {[%clk 0:00:39.2]} 28... Qc8 {[%clk 0:00:57.2]} 29. Rc1
{[%clk 0:00:30]} 29... Qd7 {[%clk 0:00:57.5]} 30. Rc7 {[%clk 0:00:29.5]} 30...
Qb5 {[%clk 0:00:57.8]} 31. Ra5 {[%clk 0:00:13.5]} 31... Qb1 {[%clk 0:00:55.1]}
32. Rc1 {[%clk 0:00:13.2]} 32... Qb6 {[%clk 0:00:54.2]} 33. d7 {[%clk
0:00:11.7]} 33... Rhh8 {[%clk 0:00:54.4]} 34. Qc3 {[%clk 0:00:06.5]} 34... e5
{[%clk 0:00:29.5]} 35. Qc8+ {[%clk 0:00:03.4]} 35... Nb8 {[%clk 0:00:29.8]} 36.
Bxe5 {[%clk 0:00:03]} 36... Qe6 {[%clk 0:00:28.9]} 37. Rxa7+ {[%clk 0:00:02.8]}
37... Kxa7 {[%clk 0:00:29.2]} 38. Bxb8+ {[%clk 0:00:03]} 38... Ka6 {[%clk
0:00:26.8]} 39. Ra1+ {[%clk 0:00:03.4]} 39... Kb6 {[%clk 0:00:27.1]} 40. Qc5#
{[%clk 0:00:03.9]} 1-0

[Event "Late-Titled-Tuesday-Blitz-September-12-2023"]
[Site "Chess.com"]
[Date "2023.09.12"]
[Round "3"]
[White "newyorkmouse"]
[Black "IngOscarArdila"]
[Result "1-0"]
[WhiteElo "2463"]
[BlackElo "2282"]
[TimeControl "180+1"]
[EndTime "14:26:50 PDT"]
[Termination "newyorkmouse won by checkmate"]

1. Nf3 {[%clk 0:02:53.6]} 1... Nf6 {[%clk 0:02:59.1]} 2. c4 {[%clk 0:02:41.3]}
2... e6 {[%clk 0:02:59.2]} 3. d4 {[%clk 0:02:39.9]} 3... Be7 {[%clk 0:02:59.2]}
4. g3 {[%clk 0:02:39.8]} 4... O-O {[%clk 0:02:59.2]} 5. Bg2 {[%clk 0:02:40.4]}
5... c5 {[%clk 0:02:57.6]} 6. d5 {[%clk 0:02:36]} 6... exd5 {[%clk 0:02:57.8]}
7. cxd5 {[%clk 0:02:36.4]} 7... d6 {[%clk 0:02:57.9]} 8. O-O {[%clk 0:02:36.4]}
8... Bf5 {[%clk 0:02:56]} 9. Nc3 {[%clk 0:02:36.4]} 9... a6 {[%clk 0:02:55.5]}
10. a4 {[%clk 0:02:36.1]} 10... Nbd7 {[%clk 0:02:55]} 11. Nd2 {[%clk 0:02:35.6]}
11... Re8 {[%clk 0:02:52.7]} 12. h3 {[%clk 0:02:18.3]} 12... h6 {[%clk 0:02:51]}
13. e4 {[%clk 0:02:14.8]} 13... Bg6 {[%clk 0:02:50.6]} 14. f4 {[%clk 0:02:14.3]}
14... Qc7 {[%clk 0:02:49.2]} 15. Nc4 {[%clk 0:02:09.6]} 15... Bf8 {[%clk
0:02:42.3]} 16. e5 {[%clk 0:01:52.3]} 16... dxe5 {[%clk 0:02:40.1]} 17. d6
{[%clk 0:01:52.4]} 17... Qb8 {[%clk 0:02:27.9]} 18. f5 {[%clk 0:01:25.2]} 18...
Bh7 {[%clk 0:02:27]} 19. g4 {[%clk 0:01:13.9]} 19... e4 {[%clk 0:02:08.6]} 20.
h4 {[%clk 0:01:06.7]} 20... b5 {[%clk 0:02:02]} 21. axb5 {[%clk 0:01:01.6]}
21... axb5 {[%clk 0:02:02.9]} 22. Rxa8 {[%clk 0:01:01.7]} 22... Qxa8 {[%clk
0:02:03.8]} 23. Nxb5 {[%clk 0:01:02.4]} 23... Qb7 {[%clk 0:01:44.3]} 24. Nc7
{[%clk 0:00:46.7]} 24... Rb8 {[%clk 0:01:38.6]} 25. g5 {[%clk 0:00:44.7]} 25...
hxg5 {[%clk 0:01:34.8]} 26. hxg5 {[%clk 0:00:44.8]} 26... Ne8 {[%clk 0:01:31.4]}
27. g6 {[%clk 0:00:37.2]} 27... fxg6 {[%clk 0:01:27]} 28. fxg6 {[%clk
0:00:38.1]} 28... Bxg6 {[%clk 0:01:27.4]} 29. Qg4 {[%clk 0:00:38.8]} 29... Nxd6
{[%clk 0:01:00.6]} 30. Nxd6 {[%clk 0:00:13.5]} 30... Bxd6 {[%clk 0:00:44.1]} 31.
Qe6+ {[%clk 0:00:12.4]} 31... Kh7 {[%clk 0:00:43.8]} 32. Qxd6 {[%clk 0:00:12.9]}
32... Nf6 {[%clk 0:00:30.9]} 33. Ne6 {[%clk 0:00:12.8]} 33... Qc8 {[%clk
0:00:19.3]} 34. Ng5+ {[%clk 0:00:10.6]} 34... Kh8 {[%clk 0:00:19.7]} 35. Rxf6
{[%clk 0:00:10.6]} 35... gxf6 {[%clk 0:00:16.2]} 36. Qxf6+ {[%clk 0:00:10.8]}
36... Kg8 {[%clk 0:00:17]} 37. Qxg6+ {[%clk 0:00:11.3]} 37... Kf8 {[%clk
0:00:17.6]} 38. Qf7# {[%clk 0:00:05.4]} 1-0

[Event "Late-Titled-Tuesday-Blitz-September-12-2023"]
[Site "Chess.com"]
[Date "2023.09.12"]
[Round "3"]
[White "ashookk"]
[Black "MikeSailer"]
[Result "1-0"]
[WhiteElo "2361"]
[BlackElo "2172"]
[TimeControl "180+1"]
[EndTime "14:26:51 PDT"]
[Termination "ashookk won on time"]

1. Nf3 {[%clk 0:03:00.9]} 1... e6 {[%clk 0:02:58.6]} 2. c4 {[%clk 0:03:00.4]}
2... f5 {[%clk 0:02:55.5]} 3. g3 {[%clk 0:03:00.2]} 3... Nf6 {[%clk 0:02:56.4]}
4. Bg2 {[%clk 0:03:01.1]} 4... Be7 {[%clk 0:02:57.1]} 5. O-O {[%clk 0:03:02]}
5... O-O {[%clk 0:02:58]} 6. Nc3 {[%clk 0:03:02.5]} 6... Nc6 {[%clk 0:02:58.9]}
7. d4 {[%clk 0:03:01.7]} 7... b6 {[%clk 0:02:59.2]} 8. d5 {[%clk 0:03:00.7]}
8... exd5 {[%clk 0:02:58]} 9. cxd5 {[%clk 0:03:00.6]} 9... Na5 {[%clk
0:02:40.7]} 10. Nd4 {[%clk 0:02:59.3]} 10... d6 {[%clk 0:02:06.1]} 11. Qd3
{[%clk 0:02:57.2]} 11... g6 {[%clk 0:02:03.3]} 12. Bg5 {[%clk 0:02:43.9]} 12...
Bd7 {[%clk 0:01:53.7]} 13. Bxf6 {[%clk 0:02:06.4]} 13... Bxf6 {[%clk 0:01:43.2]}
14. Ne6 {[%clk 0:02:03.2]} 14... Bxe6 {[%clk 0:01:24.4]} 15. dxe6 {[%clk
0:02:04.1]} 15... Rb8 {[%clk 0:01:13.6]} 16. b4 {[%clk 0:01:53.2]} 16... Nb7
{[%clk 0:01:12.3]} 17. Nd5 {[%clk 0:01:38.3]} 17... c5 {[%clk 0:00:17.5]} 18. b5
{[%clk 0:01:04.6]} 18... Na5 {[%clk 0:00:15.1]} 19. Rad1 {[%clk 0:00:59.7]}
19... c4 {[%clk 0:00:08.1]} 20. Nxf6+ {[%clk 0:00:57.5]} 20... Qxf6 {[%clk
0:00:09]} 21. Qxd6 {[%clk 0:00:58]} 21... Rbe8 {[%clk 0:00:09.2]} 22. Bd5 {[%clk
0:00:55.1]} 22... Re7 {[%clk 0:00:10.1]} 23. Rc1 {[%clk 0:00:48.8]} 23... c3
{[%clk 0:00:08.9]} 24. Rfd1 {[%clk 0:00:44.3]} 24... Rfe8 {[%clk 0:00:09]} 25.
Qb4 {[%clk 0:00:39.1]} 25... Qe5 {[%clk 0:00:06.3]} 26. Qxc3 {[%clk 0:00:36.2]}
26... Qxe2 {[%clk 0:00:06.7]} 27. Re1 {[%clk 0:00:35]} 27... Qg4 {[%clk
0:00:06.1]} 28. Qf6 {[%clk 0:00:27.6]} 28... Qh5 {[%clk 0:00:04.4]} 29. Rc8
{[%clk 0:00:22.4]} 29... g5 {[%clk 0:00:01.6]} 30. Rxe8+ {[%clk 0:00:20.9]}
30... Qxe8 {[%clk 0:00:02.3]} 31. Qxf5 {[%clk 0:00:19.5]} 1-0